[Event "32nd NATO Chess Championship"]
[Site "Tartu, Estonia"]
[Date "2022.06.27"]
[Round "1.7"]
[White "Steffers, Hendrik"]
[Black "Pietruszewski, Marcin"]
[Result "0-1"]
[TimeControl "90 min + 30 sec increment from move one"]
[WhiteFideId "1010743"]
[BlackFideId "1170295"]
[WhiteElo "1838"]
[BlackElo "2195"]

1. d4 {[%clk 01:30:53]} {[%emt 00:00:06]} Nf6 {[%clk 01:30:52]} {[%emt
00:00:07]} 2. Nf3 {[%clk 01:31:10]} {[%emt 00:00:13]} e6 {[%clk 01:31:14]}
{[%emt 00:00:08]} 3. e3 {[%clk 01:31:16]} {[%emt 00:00:25]} b6 {[%clk
01:31:39]} {[%emt 00:00:05]} 4. Bd3 {[%clk 01:31:27]} {[%emt 00:00:19]} Bb7
{[%clk 01:32:03]} {[%emt 00:00:06]} 5. Nbd2 {[%clk 01:31:35]} {[%emt 00:00:21]}
c5 {[%clk 01:32:20]} {[%emt 00:00:13]} 6. b3 {[%clk 01:31:32]} {[%emt
00:00:34]} Be7 {[%clk 01:32:42]} {[%emt 00:00:08]} 7. Bb2 {[%clk 01:31:27]}
{[%emt 00:00:35]} O-O {[%clk 01:32:41]} {[%emt 00:00:31]} 8. O-O {[%clk
01:31:30]} {[%emt 00:00:26]} Nc6 {[%clk 01:32:55]} {[%emt 00:00:17]} 9. a3
{[%clk 01:30:53]} {[%emt 00:01:07]} Rc8 {[%clk 01:31:59]} {[%emt 00:01:26]} 10.
Re1 {[%clk 01:30:01]} {[%emt 00:01:22]} d6 {[%clk 01:32:13]} {[%emt 00:00:16]}
11. Rc1 {[%clk 01:28:43]} {[%emt 00:01:48]} Rc7 {[%clk 01:32:01]} {[%emt
00:00:42]} 12. c4 {[%clk 01:26:58]} {[%emt 00:02:16]} Qa8 {[%clk 01:25:13]}
{[%emt 00:07:18]} 13. Qe2 {[%clk 01:19:07]} {[%emt 00:08:20]} Rfc8 {[%clk
01:18:24]} {[%emt 00:07:20]} 14. dxc5 {[%clk 01:12:34]} {[%emt 00:07:03]} bxc5
{[%clk 01:18:27]} {[%emt 00:00:28]} 15. e4 {[%clk 01:11:01]} {[%emt 00:02:01]}
e5 {[%clk 01:17:15]} {[%emt 00:01:42]} 16. Nf1 {[%clk 01:09:40]} {[%emt
00:01:50]} a5 {[%clk 01:11:44]} {[%emt 00:06:03]} 17. Bc2 {[%clk 01:05:42]}
{[%emt 00:04:28]} a4 {[%clk 01:05:44]} {[%emt 00:06:30]} 18. Ne3 {[%clk
01:03:52]} {[%emt 00:02:19]} axb3 {[%clk 01:00:42]} {[%emt 00:05:34]} 19. Bxb3
{[%clk 01:02:24]} {[%emt 00:01:57]} Na5 {[%clk 00:59:59]} {[%emt 00:01:12]} 20.
Bc2 {[%clk 01:00:03]} {[%emt 00:02:51]} Bxe4 {[%clk 00:59:46]} {[%emt
00:00:44]} 21. Bxe4 {[%clk 00:50:08]} {[%emt 00:10:24]} Qxe4 {[%clk 00:59:58]}
{[%emt 00:00:18]} 22. Bc3 {[%clk 00:45:15]} {[%emt 00:05:24]} Qa8 {[%clk
00:56:18]} {[%emt 00:04:10]} 23. Rb1 {[%clk 00:42:43]} {[%emt 00:03:02]} Nc6
{[%clk 00:55:04]} {[%emt 00:01:44]} 24. Qa2 {[%clk 00:40:31]} {[%emt 00:02:41]}
g6 {[%clk 00:51:30]} {[%emt 00:04:05]} 25. Nd2 {[%clk 00:36:53]} {[%emt
00:04:08]} Nd4 {[%clk 00:43:50]} {[%emt 00:08:09]} 26. a4 {[%clk 00:27:12]}
{[%emt 00:10:12]} Ra7 {[%clk 00:41:34]} {[%emt 00:02:47]} 27. a5 {[%clk
00:25:33]} {[%emt 00:02:08]} Bd8 {[%clk 00:41:53]} {[%emt 00:00:10]} 28. Ra1
{[%clk 00:25:29]} {[%emt 00:00:34]} Rc6 {[%clk 00:41:48]} {[%emt 00:00:35]} 29.
f4 {[%clk 00:18:06]} {[%emt 00:07:53]} Rca6 {[%clk 00:40:41]} {[%emt 00:01:38]}
30. fxe5 {[%clk 00:16:45]} {[%emt 00:01:51]} Bxa5 {[%clk 00:38:59]} {[%emt
00:02:12]} 31. Rac1 {[%clk 00:11:10]} {[%emt 00:06:05]} Bxc3 {[%clk 00:39:10]}
{[%emt 00:00:19]} 32. Qb1 {[%clk 00:11:21]} {[%emt 00:00:19]} dxe5 {[%clk
00:37:34]} {[%emt 00:02:06]} 0-1

[Event "32nd NATO Chess Championship"]
[Site "Tartu, Estonia"]
[Date "2022.06.27"]
[Round "1.8"]
[White "Sycz, Dariusz"]
[Black "Adolfssen, Rico"]
[Result "1-0"]
[TimeControl "90 min + 30 sec increment from move one"]
[WhiteFideId "1138650"]
[BlackFideId "1400371"]
[WhiteElo "2189"]
[BlackElo "1837"]

1. d4 {[%clk 01:30:53]} {[%emt 00:00:06]} b6 {[%clk 01:30:46]} {[%emt
00:00:15]} 2. Nf3 {[%clk 01:30:03]} {[%emt 00:01:19]} Bb7 {[%clk 01:30:48]}
{[%emt 00:00:28]} 3. c4 {[%clk 01:29:59]} {[%emt 00:00:34]} Nf6 {[%clk
01:30:33]} {[%emt 00:00:45]} 4. Nc3 {[%clk 01:28:45]} {[%emt 00:01:44]} e6
{[%clk 01:27:57]} {[%emt 00:03:07]} 5. e3 {[%clk 01:28:09]} {[%emt 00:01:04]}
d5 {[%clk 01:26:41]} {[%emt 00:01:47]} 6. Bd3 {[%clk 01:27:37]} {[%emt
00:01:02]} Nbd7 {[%clk 01:21:26]} {[%emt 00:05:45]} 7. O-O {[%clk 01:26:38]}
{[%emt 00:01:28]} dxc4 {[%clk 01:17:40]} {[%emt 00:04:17]} 8. Bxc4 {[%clk
01:27:00]} {[%emt 00:00:08]} Ne4 {[%clk 01:09:13]} {[%emt 00:08:57]} 9. Qe2
{[%clk 01:23:40]} {[%emt 00:03:48]} a6 {[%clk 01:02:52]} {[%emt 00:06:53]} 10.
Nxe4 {[%clk 01:18:56]} {[%emt 00:05:14]} Bxe4 {[%clk 01:02:36]} {[%emt
00:00:46]} 11. Bxa6 {[%clk 01:18:46]} {[%emt 00:00:41]} Bxf3 {[%clk 01:00:49]}
{[%emt 00:02:17]} 12. gxf3 {[%clk 01:19:08]} {[%emt 00:00:07]} Bd6 {[%clk
00:56:36]} {[%emt 00:04:43]} 13. e4 {[%clk 01:14:29]} {[%emt 00:05:09]} g5
{[%clk 00:46:20]} {[%emt 00:10:46]} 14. e5 {[%clk 01:11:32]} {[%emt 00:03:27]}
Bf8 {[%clk 00:41:37]} {[%emt 00:05:13]} 15. Bb5 {[%clk 01:08:13]} {[%emt
00:03:48]} h5 {[%clk 00:36:09]} {[%emt 00:05:58]} 16. d5 {[%clk 01:06:32]}
{[%emt 00:02:11]} Rg8 {[%clk 00:31:29]} {[%emt 00:05:11]} 17. Rd1 {[%clk
01:05:47]} {[%emt 00:01:15]} g4 {[%clk 00:30:06]} {[%emt 00:01:52]} 18. f4
{[%clk 01:05:54]} {[%emt 00:00:24]} Rg7 {[%clk 00:27:07]} {[%emt 00:03:29]} 19.
f5 {[%clk 01:05:39]} {[%emt 00:00:45]} Ra5 {[%clk 00:23:44]} {[%emt 00:03:53]}
20. dxe6 {[%clk 01:05:34]} {[%emt 00:00:34]} fxe6 {[%clk 00:23:04]} {[%emt
00:01:11]} 21. Rxd7 {[%clk 01:05:32]} {[%emt 00:00:32]} Rxd7 {[%clk 00:23:04]}
{[%emt 00:00:30]} 22. fxe6 {[%clk 01:05:54]} {[%emt 00:00:08]} Qa8 {[%clk
00:17:11]} {[%emt 00:06:23]} 23. exd7+ {[%clk 01:05:14]} {[%emt 00:01:09]} Kd8
{[%clk 00:17:22]} {[%emt 00:00:19]} 24. Bg5+ {[%clk 01:05:03]} {[%emt
00:00:41]} Be7 {[%clk 00:17:43]} {[%emt 00:00:10]} 25. Bxe7+ {[%clk 01:05:24]}
{[%emt 00:00:09]} Kxe7 {[%clk 00:18:04]} {[%emt 00:00:08]} 26. Rd1 {[%clk
01:05:33]} {[%emt 00:00:21]} 1-0

[Event "32nd NATO Chess Championship"]
[Site "Tartu, Estonia"]
[Date "2022.06.27"]
[Round "1.9"]
[White "Kocur, Marc"]
[Black "Cichy, Kamil"]
[Result "0-1"]
[TimeControl "90 min + 30 sec increment from move one"]
[WhiteFideId "205036"]
[BlackFideId "1177257"]
[WhiteElo "1835"]
[BlackElo "2179"]

1. d4 {[%clk 01:30:50]} {[%emt 00:00:07]} Nf6 {[%clk 01:30:19]} {[%emt
00:00:42]} 2. Bf4 {[%clk 01:31:02]} {[%emt 00:00:18]} d6 {[%clk 01:29:37]}
{[%emt 00:01:12]} 3. Nc3 {[%clk 01:30:52]} {[%emt 00:00:40]} Bf5 {[%clk
01:28:08]} {[%emt 00:01:59]} 4. f3 {[%clk 01:25:24]} {[%emt 00:05:58]} d5
{[%emt 00:09:48]} 5. g4 {[%clk 01:18:19]} {[%emt 00:03:34]} Bg6 {[%clk
01:20:41]} {[%emt 00:02:40]} 6. e3 {[%clk 01:18:12]} {[%emt 00:00:36]} e6
{[%clk 01:16:16]} {[%emt 00:04:56]} 7. Bd3 {[%clk 01:15:59]} {[%emt 00:02:43]}
c5 {[%clk 01:05:45]} {[%emt 00:11:01]} 8. h4 {[%clk 01:02:22]} {[%emt
00:14:05]} c4 {[%clk 00:44:23]} {[%emt 00:21:55]} 9. h5 {[%clk 01:02:20]}
{[%emt 00:00:31]} Bxh5 {[%emt 00:15:06]} 10. g5 {[%clk 00:39:18]} {[%emt
00:21:46]} cxd3 {[%clk 00:29:52]} {[%emt 00:02:12]} 11. gxf6 {[%clk 00:39:40]}
{[%emt 00:00:07]} Bg6 {[%clk 00:26:33]} {[%emt 00:03:50]} 12. fxg7 {[%clk
00:38:55]} {[%emt 00:01:14]} Bxg7 {[%clk 00:26:59]} {[%emt 00:00:04]} 13. cxd3
{[%clk 00:36:55]} {[%emt 00:02:31]} Nc6 {[%clk 00:23:17]} {[%emt 00:04:12]} 14.
Qb3 {[%clk 00:30:41]} {[%emt 00:06:43]} Qb6 {[%clk 00:17:09]} {[%emt 00:06:38]}
15. Nb5 {[%clk 00:21:15]} {[%emt 00:09:56]} O-O {[%clk 00:10:45]} {[%emt
00:06:54]} 16. Bc7 {[%clk 00:17:51]} {[%emt 00:03:54]} Qa6 {[%clk 00:11:03]}
{[%emt 00:00:12]} 17. Ne2 {[%clk 00:15:47]} {[%emt 00:02:33]} Rac8 {[%clk
00:07:37]} {[%emt 00:03:57]} 18. Nf4 {[%clk 00:14:12]} {[%emt 00:02:05]} Rxc7
{[%clk 00:06:43]} {[%emt 00:01:25]} 19. Nxc7 {[%clk 00:14:17]} {[%emt
00:00:24]} Qa5+ {[%clk 00:07:09]} {[%emt 00:00:04]} 20. Qc3 {[%clk 00:11:13]}
{[%emt 00:03:34]} Qxc7 {[%clk 00:07:35]} {[%emt 00:00:05]} 0-1

[Event "32nd NATO Chess Championship"]
[Site "Tartu, Estonia"]
[Date "2022.06.27"]
[Round "1.10"]
[White "Valeinis, Janis"]
[Black "Rosseel, Kimball"]
[Result "1-0"]
[TimeControl "90 min + 30 sec increment from move one"]
[WhiteFideId "11601450"]
[BlackFideId "233331"]
[WhiteElo "2176"]
[BlackElo "1831"]

1. Nf3 {[%clk 01:30:44]} {[%emt 00:00:16]} d6 {[%clk 01:30:50]} {[%emt
00:01:30]} 2. d4 {[%clk 01:30:32]} {[%emt 00:00:50]} g6 {[%clk 01:30:55]}
{[%emt 00:00:25]} 3. Nc3 {[%clk 01:29:46]} {[%emt 00:01:15]} Bg7 {[%clk
01:29:57]} {[%emt 00:01:30]} 4. e4 {[%clk 01:29:24]} {[%emt 00:00:52]} Nc6
{[%clk 01:29:52]} {[%emt 00:00:35]} 5. d5 {[%clk 01:23:12]} {[%emt 00:06:42]}
Nb8 {[%clk 01:24:04]} {[%emt 00:06:18]} 6. Be2 {[%clk 01:20:51]} {[%emt
00:02:49]} c6 {[%clk 01:19:28]} {[%emt 00:05:07]} 7. O-O {[%clk 01:20:58]}
{[%emt 00:00:22]} Nf6 {[%clk 01:16:06]} {[%emt 00:03:53]} 8. h3 {[%clk
01:19:27]} {[%emt 00:02:00]} O-O {[%clk 01:14:56]} {[%emt 00:01:42]} 9. Re1
{[%clk 01:15:50]} {[%emt 00:04:05]} Nbd7 {[%clk 01:11:43]} {[%emt 00:03:44]} 10.
Bf1 {[%clk 01:13:01]} {[%emt 00:03:18]} cxd5 {[%clk 01:09:17]} {[%emt
00:02:58]} 11. exd5 {[%clk 01:13:11]} {[%emt 00:00:20]} Nb6 {[%clk 01:06:30]}
{[%emt 00:03:17]} 12. a4 {[%clk 00:58:57]} {[%emt 00:14:44]} a5 {[%clk
01:01:18]} {[%emt 00:05:42]} 13. Be3 {[%clk 00:55:55]} {[%emt 00:03:28]} Re8
{[%clk 00:57:12]} {[%emt 00:04:40]} 14. Qd2 {[%clk 00:41:36]} {[%emt 00:14:48]}
Bd7 {[%clk 00:53:40]} {[%emt 00:04:03]} 15. Bd4 {[%clk 00:40:51]} {[%emt
00:01:13]} Rc8 {[%clk 00:50:40]} {[%emt 00:03:31]} 16. b3 {[%clk 00:40:47]}
{[%emt 00:00:35]} e5 {[%clk 00:41:07]} {[%emt 00:10:03]} 17. dxe6 {[%clk
00:40:38]} {[%emt 00:00:38]} fxe6 {[%clk 00:41:15]} {[%emt 00:00:22]} 18. Nb5
{[%clk 00:39:54]} {[%emt 00:01:15]} Bxb5 {[%clk 00:35:04]} {[%emt 00:06:40]} 19.
Bxb5 {[%clk 00:35:25]} {[%emt 00:04:59]} Nbd7 {[%clk 00:33:07]} {[%emt
00:02:27]} 20. c4 {[%clk 00:32:39]} {[%emt 00:03:17]} Re7 {[%clk 00:28:42]}
{[%emt 00:04:55]} 21. Bxd7 {[%clk 00:32:17]} {[%emt 00:00:51]} Nxd7 {[%clk
00:25:56]} {[%emt 00:03:17]} 22. Bxg7 {[%clk 00:31:57]} {[%emt 00:00:50]} Kxg7
{[%clk 00:25:47]} {[%emt 00:00:39]} 23. Qxd6 {[%clk 00:32:14]} {[%emt
00:00:12]} Rc6 {[%clk 00:25:04]} {[%emt 00:01:14]} 24. Qd4+ {[%clk 00:32:14]}
{[%emt 00:00:30]} Kg8 {[%clk 00:23:16]} {[%emt 00:02:18]} 25. Rad1 {[%clk
00:31:41]} {[%emt 00:01:02]} Qb6 {[%clk 00:20:55]} {[%emt 00:02:51]} 26. Qh4
{[%clk 00:30:56]} {[%emt 00:01:15]} Kf8 {[%clk 00:18:21]} {[%emt 00:03:04]} 27.
Re3 {[%clk 00:29:55]} {[%emt 00:01:31]} e5 {[%clk 00:17:02]} {[%emt 00:01:49]}
28. Ng5 {[%clk 00:23:35]} {[%emt 00:06:50]} Nf6 {[%clk 00:15:51]} {[%emt
00:01:42]} 29. Rde1 {[%clk 00:22:53]} {[%emt 00:01:11]} Rc5 {[%clk 00:14:54]}
{[%emt 00:01:27]} 30. Rf3 {[%clk 00:22:05]} {[%emt 00:01:18]} Ke8 {[%clk
00:14:04]} {[%emt 00:01:20]} 31. Ne4 {[%clk 00:20:52]} {[%emt 00:01:43]} Nxe4
{[%clk 00:13:32]} {[%emt 00:01:02]} 32. Rxe4 {[%clk 00:21:02]} {[%emt
00:00:20]} Qd6 {[%clk 00:12:00]} {[%emt 00:02:01]} 33. Rfe3 {[%clk 00:20:10]}
{[%emt 00:01:22]} Qd1+ {[%clk 00:08:36]} {[%emt 00:03:55]} 34. Kh2 {[%clk
00:20:34]} {[%emt 00:00:06]} Qd6 {[%clk 00:07:39]} {[%emt 00:01:27]} 35. Qg5
{[%clk 00:18:49]} {[%emt 00:02:15]} Kf7 {[%clk 00:06:15]} {[%emt 00:01:54]} 36.
f4 {[%clk 00:17:57]} {[%emt 00:01:22]} b6 {[%clk 00:04:44]} {[%emt 00:02:01]}
37. fxe5 {[%clk 00:17:42]} {[%emt 00:00:45]} Qe6 {[%clk 00:04:20]} {[%emt
00:00:54]} 38. Rf3+ {[%clk 00:16:25]} {[%emt 00:01:47]} Kg8 {[%clk 00:04:45]}
{[%emt 00:00:04]} 39. Qh6 {[%clk 00:15:37]} {[%emt 00:01:19]} Re8 {[%clk
00:04:33]} {[%emt 00:00:42]} 40. Rf6 {[%clk 00:14:29]} {[%emt 00:01:38]} Qe7
{[%clk 00:03:44]} {[%emt 00:01:19]} 41. Rxg6+ {[%clk 00:14:48]} {[%emt
00:00:11]} Kh8 {[%clk 00:03:16]} {[%emt 00:00:58]} 42. Rg5 {[%clk 00:12:24]}
{[%emt 00:02:54]} Qc7 {[%clk 00:02:28]} {[%emt 00:01:19]} 43. Qf6+ {[%clk
00:12:44]} {[%emt 00:00:09]} 1-0

[Event "32nd NATO Chess Championship"]
[Site "Tartu, Estonia"]
[Date "2022.06.27"]
[Round "1.12"]
[White "Nill, Oliver"]
[Black "Tikerpuu, Mati"]
[Result "0-1"]
[TimeControl "90 min + 30 sec increment from move one"]
[WhiteFideId "4652630"]
[BlackFideId "4505905"]
[WhiteElo "2166"]
[BlackElo "1819"]

1. c4 e6 2. e4 b6 3. Nc3 Bb7 4. Nf3 Bb4 5. Bd3 c5 6. O-O Ne7 7. b3 Bxc3 8. dxc3
Nbc6 9. Re1 O-O 10. h4 Ng6 11. h5 Nge5 12. h6 g6 13. Bf1 f5 14. Nxe5 Nxe5 15.
Bf4 Ng4 16. exf5 Nxf2 17. Qd6 Rxf5 18. Bg3 Ne4 19. Rxe4 Bxe4 20. Re1 Bc6 21.
Bd3 Rf7 22. Qe5 Qf6 23. Qe3 g5 24. b4 cxb4 25. cxb4 Qxh6 26. b5 Bb7 27. Be5
Raf8 28. Bd6 Rc8 29. Be5 Qh4 30. Bg3 Qg4 31. Be2 Qf5 32. Be5 h6 33. Bd3 Qg4 34.
Re2 Rcf8 35. Rd2 Rf3 36. Qe2 Rf1+ 37. Qxf1 Rxf1+ 38. Bxf1 Qe4 39. Rxd7 Qe3+ 40.
Kh1 Bxg2+ 41. Bxg2 Qxe5 42. Rxa7 Qe1+ 43. Kh2 Qh4+ 44. Kg1 Qxc4 0-1

[Event "32nd NATO Chess Championship"]
[Site "Tartu, Estonia"]
[Date "2022.06.27"]
[Round "1.13"]
[White "Ivbulis, Martins"]
[Black "Jauk, Wilhelm"]
[Result "0-1"]
[TimeControl "90 min + 30 sec increment from move one"]
[WhiteFideId "11603496"]
[BlackFideId "24681067"]
[WhiteElo "1815"]
[BlackElo "2156"]

1. d4 {[%clk 01:30:57]} {[%emt 00:00:03]} d5 {[%clk 01:30:46]} {[%emt
00:00:14]} 2. Nc3 {[%clk 01:31:17]} {[%emt 00:00:10]} Nf6 {[%clk 01:30:52]}
{[%emt 00:00:25]} 3. Bf4 {[%clk 01:31:30]} {[%emt 00:00:17]} a6 {[%clk
01:30:33]} {[%emt 00:00:48]} 4. e3 {[%clk 01:31:47]} {[%emt 00:00:13]} e6
{[%clk 01:29:39]} {[%emt 00:01:25]} 5. Nf3 {[%clk 01:31:49]} {[%emt 00:00:28]}
c5 {[%clk 01:29:47]} {[%emt 00:00:21]} 6. dxc5 {[%clk 01:29:41]} {[%emt
00:02:39]} Bxc5 {[%clk 01:30:02]} {[%emt 00:00:15]} 7. Bd3 {[%clk 01:28:36]}
{[%emt 00:01:35]} Nc6 {[%clk 01:29:32]} {[%emt 00:00:59]} 8. e4 {[%emt
00:11:37]} d4 {[%clk 00:57:58]} {[%emt 00:23:10]} 9. Ne2 {[%clk 01:25:25]}
{[%emt 00:01:28]} Nh5 {[%clk 00:55:31]} {[%emt 00:02:56]} 10. Bg5 {[%clk
01:18:32]} {[%emt 00:07:25]} Qb6 {[%clk 00:50:58]} {[%emt 00:05:03]} 11. e5
{[%clk 01:15:07]} {[%emt 00:03:54]} h6 {[%clk 00:46:58]} {[%emt 00:04:30]} 12.
Bd2 {[%clk 01:13:51]} {[%emt 00:01:46]} g5 {[%clk 00:45:26]} {[%emt 00:02:02]}
13. g4 {[%clk 01:10:54]} {[%emt 00:03:28]} Nf4 {[%clk 00:42:45]} {[%emt
00:03:10]} 14. Nxf4 {[%clk 01:08:05]} {[%emt 00:03:19]} gxf4 {[%clk 00:43:09]}
{[%emt 00:00:05]} 15. Bxf4 {[%clk 01:06:45]} {[%emt 00:01:51]} Qxb2 {[%clk
00:42:22]} {[%emt 00:01:18]} 16. g5 {[%clk 01:05:30]} {[%emt 00:01:44]} hxg5
{[%clk 00:36:44]} {[%emt 00:06:08]} 17. Nxg5 {[%emt 00:03:52]} Bb4+ {[%clk
00:33:11]} {[%emt 00:01:48]} 18. Kf1 {[%clk 01:04:36]} {[%emt 00:00:17]} Be7
{[%clk 00:33:36]} {[%emt 00:00:04]} 19. h4 {[%clk 00:56:41]} {[%emt 00:08:26]}
b5 {[%clk 00:32:23]} {[%emt 00:01:43]} 20. h5 {[%clk 00:54:44]} {[%emt
00:02:26]} Bb7 {[%clk 00:32:04]} {[%emt 00:00:49]} 21. Nxf7 {[%clk 00:44:50]}
{[%emt 00:10:24]} Kxf7 {[%clk 00:28:32]} {[%emt 00:04:01]} 22. Bg6+ {[%clk
00:44:58]} {[%emt 00:00:22]} Kf8 {[%clk 00:28:32]} {[%emt 00:00:31]} 23. Bc1
{[%clk 00:45:00]} {[%emt 00:00:28]} Qc3 {[%clk 00:28:25]} {[%emt 00:00:38]} 24.
Qg4 {[%clk 00:42:58]} {[%emt 00:02:32]} Bb4 {[%clk 00:20:39]} {[%emt 00:08:14]}
25. Bb2 {[%clk 00:34:23]} {[%emt 00:09:06]} Qxb2 {[%clk 00:18:27]} {[%emt
00:02:42]} 26. Qxe6 {[%clk 00:34:42]} {[%emt 00:00:11]} Qxa1+ {[%clk 00:17:47]}
{[%emt 00:01:09]} 27. Ke2 {[%clk 00:34:49]} {[%emt 00:00:24]} d3+ {[%clk
00:18:07]} {[%emt 00:00:09]} 0-1

[Event "32nd NATO Chess Championship"]
[Site "Tartu, Estonia"]
[Date "2022.06.27"]
[Round "1.14"]
[White "Graczyk, Damian"]
[Black "Ntalampiras, Spyros"]
[Result "1-0"]
[TimeControl "90 min + 30 sec increment from move one"]
[WhiteFideId "1170716"]
[BlackFideId "4227778"]
[WhiteElo "2151"]
[BlackElo "1815"]

1. d4 {[%clk 01:30:55]} {[%emt 00:00:05]} Nf6 {[%clk 01:30:50]} {[%emt
00:00:11]} 2. Nf3 {[%clk 01:31:17]} {[%emt 00:00:08]} g6 {[%clk 01:31:09]}
{[%emt 00:00:10]} 3. Bf4 {[%clk 01:31:38]} {[%emt 00:00:09]} Bg7 {[%clk
01:31:16]} {[%emt 00:00:23]} 4. h3 {[%clk 01:32:02]} {[%emt 00:00:06]} O-O
{[%clk 01:31:07]} {[%emt 00:00:38]} 5. e3 {[%clk 01:32:21]} {[%emt 00:00:12]}
d5 {[%clk 01:30:24]} {[%emt 00:01:12]} 6. Nbd2 {[%clk 01:32:36]} {[%emt
00:00:16]} c5 {[%clk 01:29:11]} {[%emt 00:01:43]} 7. c3 {[%clk 01:31:00]}
{[%emt 00:02:07]} b6 {[%clk 01:27:14]} {[%emt 00:02:27]} 8. Bd3 {[%clk
01:30:48]} {[%emt 00:00:41]} Nbd7 {[%clk 01:22:14]} {[%emt 00:05:30]} 9. O-O
{[%clk 01:30:10]} {[%emt 00:01:09]} Re8 {[%emt 00:04:23]} 10. Bh2 {[%clk
01:21:12]} {[%emt 00:05:55]} Bb7 {[%clk 01:18:59]} {[%emt 00:03:23]} 11. a4
{[%clk 01:21:29]} {[%emt 00:00:15]} a6 {[%clk 01:16:47]} {[%emt 00:02:41]} 12.
Qe2 {[%clk 01:21:05]} {[%emt 00:00:54]} Ne4 {[%clk 01:12:31]} {[%emt 00:04:46]}
13. Rfd1 {[%clk 01:16:52]} {[%emt 00:04:43]} f5 {[%clk 01:06:12]} {[%emt
00:06:49]} 14. c4 {[%clk 01:12:18]} {[%emt 00:05:05]} e6 {[%clk 01:02:39]}
{[%emt 00:04:03]} 15. Rac1 {[%clk 01:08:47]} {[%emt 00:04:01]} Qe7 {[%clk
00:59:25]} {[%emt 00:03:43]} 16. Ne5 {[%clk 00:59:58]} {[%emt 00:09:19]} Nxe5
{[%clk 00:54:32]} {[%emt 00:05:24]} 17. dxe5 {[%clk 01:00:10]} {[%emt
00:00:18]} Nxd2 {[%clk 00:53:21]} {[%emt 00:01:40]} 18. Rxd2 {[%clk 00:59:36]}
{[%emt 00:01:04]} d4 {[%clk 00:51:49]} {[%emt 00:02:03]} 19. exd4 {[%clk
00:53:47]} {[%emt 00:06:19]} Bh6 {[%clk 00:50:26]} {[%emt 00:01:53]} 20. f4
{[%clk 00:54:11]} {[%emt 00:00:06]} cxd4 {[%emt 00:02:46]} 21. a5 {[%clk
00:48:14]} {[%emt 00:04:01]} Rec8 {[%clk 00:45:43]} {[%emt 00:05:22]} 22. axb6
{[%clk 00:46:09]} {[%emt 00:02:36]} Qc5 {[%clk 00:45:41]} {[%emt 00:00:31]} 23.
Rdc2 {[%clk 00:39:53]} {[%emt 00:06:47]} Bf8 {[%clk 00:44:45]} {[%emt
00:01:25]} 24. Kh1 {[%clk 00:36:49]} {[%emt 00:03:34]} Qxb6 {[%clk 00:43:24]}
{[%emt 00:01:51]} 25. Bg1 {[%clk 00:34:03]} {[%emt 00:03:15]} Bc5 {[%clk
00:40:00]} {[%emt 00:03:54]} 26. b3 {[%clk 00:20:22]} {[%emt 00:14:11]} Bc6
{[%clk 00:36:19]} {[%emt 00:04:12]} 27. Rb1 {[%clk 00:18:08]} {[%emt 00:02:44]}
a5 {[%clk 00:35:09]} {[%emt 00:01:39]} 28. Ra2 {[%clk 00:17:08]} {[%emt
00:01:30]} Qd8 {[%clk 00:33:18]} {[%emt 00:02:21]} 29. Kh2 {[%clk 00:17:04]}
{[%emt 00:00:34]} Rcb8 {[%clk 00:31:33]} {[%emt 00:02:16]} 30. Qe1 {[%clk
00:13:43]} {[%emt 00:03:51]} Rb7 {[%clk 00:29:11]} {[%emt 00:02:52]} 31. Bf2
{[%clk 00:13:40]} {[%emt 00:00:33]} h6 {[%clk 00:23:47]} {[%emt 00:05:54]} 32.
g4 {[%clk 00:09:39]} {[%emt 00:04:31]} Rg7 {[%clk 00:21:43]} {[%emt 00:02:33]}
33. Qe2 {[%clk 00:05:49]} {[%emt 00:04:20]} Qb8 {[%clk 00:14:41]} {[%emt
00:07:32]} 34. Bh4 {[%clk 00:05:48]} {[%emt 00:00:32]} g5 {[%clk 00:13:42]}
{[%emt 00:01:29]} 35. Bg3 {[%clk 00:05:04]} {[%emt 00:01:14]} fxg4 {[%clk
00:12:28]} {[%emt 00:01:44]} 36. Qxg4 {[%clk 00:04:46]} {[%emt 00:00:46]} Qe8
{[%clk 00:12:24]} {[%emt 00:00:35]} 37. f5 {[%clk 00:04:14]} {[%emt 00:01:03]}
h5 {[%clk 00:11:41]} {[%emt 00:01:12]} 38. Qe2 {[%clk 00:04:03]} {[%emt
00:00:42]} exf5 {[%clk 00:11:20]} {[%emt 00:00:51]} 39. Bxf5 {[%clk 00:04:04]}
{[%emt 00:00:29]} h4 {[%clk 00:11:02]} {[%emt 00:00:48]} 40. Be1 {[%clk
00:03:27]} {[%emt 00:01:06]} Qf7 {[%clk 00:07:35]} {[%emt 00:03:57]} 41. Qg4
{[%clk 00:03:01]} {[%emt 00:00:57]} Kh8 {[%clk 00:05:59]} {[%emt 00:02:06]} 42.
Rxa5 {[%clk 00:03:21]} {[%emt 00:00:10]} Rxa5 {[%clk 00:04:58]} {[%emt
00:01:32]} 43. Bxa5 {[%clk 00:03:49]} Qe8 {[%clk 00:04:39]} {[%emt 00:00:47]}
44. Re1 {[%clk 00:03:47]} {[%emt 00:00:33]} d3 {[%clk 00:03:05]} {[%emt
00:02:05]} 45. Bc3 {[%clk 00:03:22]} {[%emt 00:00:55]} Bf2 {[%clk 00:03:11]}
{[%emt 00:00:23]} 46. Rf1 {[%clk 00:02:41]} {[%emt 00:01:10]} Bg3+ {[%clk
00:02:58]} {[%emt 00:00:45]} 47. Kg1 {[%clk 00:03:10]} Bxe5 {[%clk 00:01:35]}
{[%emt 00:01:53]} 48. Re1 {[%clk 00:02:45]} {[%emt 00:00:55]} Bd4+ {[%clk
00:00:36]} {[%emt 00:01:30]} 49. Qxd4 {[%clk 00:03:01]} {[%emt 00:00:14]} 1-0